fUST/lending_fUST_20250412
["ID","MTS","AMOUNT","RATE_DAILY","PERIOD"]
[357731557,1744398634023,-500.0,0.00019324,2]
[357731559,1744398634035,-500.0,0.00019324,2]
[357731561,1744398634048,-500.0,0.00019324,2]
[357731563,1744398634058,-200.0,0.00019324,2]
[357731565,1744398634070,-500.0,0.00019324,2]
[357731567,1744398634081,-500.0,0.00019324,2]
[357731570,1744398634092,-277.74032396,0.00019324,2]
[357731572,1744398634107,-222.25967604,0.00019324,2]
[357731574,1744398634119,-500.0,0.00019324,2]
[357731576,1744398634130,-500.0,0.00019324,2]
[357731578,1744398634140,-500.0,0.00019324,2]
[357731580,1744398634152,-500.0,0.00019324,2]
[357731583,1744398634163,-500.0,0.00019324,2]
[357731585,1744398634174,-500.0,0.00019324,2]
[357731587,1744398634184,-500.0,0.00019324,2]
[357731589,1744398634195,-3298.87783877,0.00019324,3]
[357731591,1744398634204,-6756.00536142,0.00019325,2]
[357731593,1744398634215,-26814.79396019,0.00019326,2]
[357731957,1744398638709,-500.0,0.00019323,2]
[357731960,1744398638719,-754.3,0.00019324,2]
[357731962,1744398638731,-49245.7,0.00019324,2]
[357731964,1744398638742,-11258.62704261,0.00019326,2]
[357731966,1744398638752,-647.9926424,0.000198,2]
[357731968,1744398638763,-1447.64828174,0.000199,2]
[357731970,1744398638774,-1999.72494628,0.00020226,2]
[357731972,1744398638784,-1576.2336532,0.00020296,2]
[357731974,1744398638794,-9528.2660981,0.00020327,2]
[357731976,1744398638804,-1447.64828158,0.0002059,2]
[357731978,1744398638814,-237.963802,0.0002065,2]
[357731981,1744398638823,-717.26,0.00020685,3]
[357731983,1744398638833,-1075.9,0.00020685,3]
[357731985,1744398638843,-537.96,0.00020685,3]
[357731987,1744398638853,-250.0,0.00021227,2]
[357731989,1744398638863,-250.0,0.00021227,2]
[357731991,1744398638874,-355.67255179,0.00021273,2]
[357731993,1744398638884,-1447.64828158,0.00021279,3]
[357731995,1744398638893,-151.0,0.00021314,2]
[357731997,1744398638903,-407.4,0.00021314,2]
[357731999,1744398638915,-160.0,0.00021326,2]
[357732001,1744398638925,-75721.59578679,0.00021327,2]
[357732088,1744398640779,-6930.50607129,0.00021327,2]
[357732089,1744398640834,-58789.07294311,0.00021327,2]
[357732090,1744398640846,-2069.59999999,0.00021327,2]
[357732091,1744398640878,-39021.08638791,0.00021327,2]
[357732092,1744398640888,-160.702964,0.00021327,2]
[357732093,1744398640899,-151.0,0.00021327,2]
[357732094,1744398640908,-183.342588,0.00021327,2]
[357732095,1744398640918,-151.0,0.00021327,2]
[357732096,1744398640928,-160.0,0.00021372,2]
[357732097,1744398640937,-500.0,0.00021373,2]
[357732098,1744398640947,-349.87536781,0.00021373,2]
[357732099,1744398640957,-500.0,0.00021373,2]
[357732100,1744398640967,-500.0,0.00021373,2]
[357732101,1744398640977,-500.0,0.00021373,2]
[357732102,1744398640986,-577.13562294,0.00021373,2]
[357732103,1744398640996,-500.0,0.00021373,2]
[357732104,1744398641006,-500.0,0.00021373,2]
[357732105,1744398641016,-501.06259466,0.00021373,2]
[357732106,1744398641026,-446.02157172,0.00021373,2]
[357732107,1744398641036,-500.0,0.00021373,2]
[357732108,1744398641045,-500.0,0.00021373,2]
[357732109,1744398641055,-500.0,0.00021373,2]
[357732110,1744398641065,-500.0,0.00021373,2]
[357732111,1744398641074,-500.0,0.00021373,2]
[357732112,1744398641084,-501.40996148,0.00021373,2]
[357732113,1744398641094,-479.93683802,0.00021373,2]
[357732114,1744398641103,-500.0,0.00021373,2]
[357732115,1744398641113,-500.0,0.00021373,2]
[357732116,1744398641123,-500.0,0.00021373,2]
[357732117,1744398641133,-268.25364562,0.00021373,2]
[357732118,1744398641143,-500.0,0.00021373,2]
[357732119,1744398641152,-500.0,0.00021373,2]
[357732120,1744398641162,-268.69800278,0.00021373,2]
[357732121,1744398641172,-151.0,0.00021373,2]
[357732122,1744398641182,-151.0,0.00021373,2]
[357732123,1744398641191,-160.0,0.00021428,2]
[357732124,1744398641201,-24290.20616824,0.00021429,2]
[357732125,1744398641214,-609.79383176,0.00021429,2]
[357732126,1744398641223,-409.35940865,0.00021473,2]
[357732127,1744398641233,-500.52576407,0.00021473,2]
[357732128,1744398641243,-27.10699606,0.00021473,2]
[357732131,1744398643701,-472.89300394,0.00021473,2]
[357732132,1744398643711,-500.0,0.00021473,2]
[357732133,1744398643721,-500.0,0.00021473,2]
[357732134,1744398643731,-416.88635533,0.00021473,2]
[357732135,1744398643742,-500.0,0.00021473,2]
[357732136,1744398643752,-151.0,0.00021687,2]
[357732137,1744398643762,-151.0,0.00021687,2]
[357732138,1744398643771,-1447.64828158,0.00021969,3]
[357732139,1744398643781,-837.98236364,0.00021969,3]
[357732140,1744398643792,-314.0,0.00022,2]
[357732141,1744398643802,-355.67255175,0.00022155,2]
[357732142,1744398643812,-314.0,0.00022192,2]
[357732143,1744398643822,-151.0,0.00022521,7]
[357732144,1744398643833,-151.0,0.00022521,7]
[357732145,1744398643842,-1447.64828158,0.00022659,4]
[357732147,1744398643852,-151.0,0.00022686,7]
[357732149,1744398643862,-151.0,0.00022686,7]
[357732150,1744398643873,-178.73756432,0.00022849,2]
[357732151,1744398643883,-419.71244257,0.00023,3]
[357732152,1744398643894,-314.0,0.00023014,2]
[357732153,1744398643905,-355.67255175,0.00023037,2]
[357732154,1744398643915,-1136.1057125,0.00023037,2]
[357732185,1744398646531,-863.61923377,0.00023037,2]
[357732186,1744398646541,-706.88076623,0.00023071,2]
[357732187,1744398646589,-693.11923377,0.00023071,2]
[357732188,1744398646600,-1023.59635035,0.00023348,4]
[357732190,1744398779731,153.01,0.000266,31]
[357732191,1744398779776,153.01,0.000266,31]
[357732192,1744398779832,153.01,0.000266,31]
[357732193,1744398779890,153.01,0.000266,31]
[357732194,1744399384572,153.02,0.000266,31]
[357732195,1744399384619,153.02,0.000266,31]
[357732196,1744399384675,153.02,0.000266,31]
[357732197,1744399463204,3901.1223425,0.00017941,2]
[357732208,1744399613560,647.01,0.00010959,2]
[357732217,1744399678889,400.4513943,0.00016,2]
[357732243,1744399723382,306.95249249,0.000175,4]
[357732244,1744399726914,323.5,0.00010959,2]
[357732246,1744399737958,269.58,0.00010959,2]
[357732251,1744399748173,224.65,0.00010959,2]
[357732256,1744399758666,187.21,0.00010959,2]
[357732257,1744399769264,156.01,0.00010959,2]
[357732258,1744399779827,780.05,0.00010959,2]
[357732293,1744399833425,-1499.79370972,0.00018186,2]
[357732294,1744399833435,-318.92265823,0.00018218,2]
[357732295,1744399833446,-300.0,0.00018272,2]
[357732296,1744399833455,-500.0,0.00018273,2]
[357732297,1744399833466,-500.0,0.00018273,2]
[357732298,1744399833476,-501.26066108,0.00018273,2]
[357732299,1744399833487,-215.03500361,0.00018273,2]
[357732300,1744399833497,-500.0,0.00018273,2]
[357732301,1744399833507,-375.05775775,0.00018273,2]
[357732302,1744399833517,-211.78507597,0.00018273,2]
[357732303,1744399833527,-500.0,0.00018273,2]
[357732304,1744399833537,-412.65867733,0.00018273,2]
[357732305,1744399833547,-500.0,0.00018273,2]
[357732306,1744399833560,-154.79700241,0.00018273,2]
[357732307,1744399833570,-500.0,0.00018273,2]
[357732308,1744399833580,-501.1324001,0.00018273,2]
[357732309,1744399833590,-277.79486328,0.00018273,2]
[357732310,1744399833600,-500.0,0.00018273,2]
[357732311,1744399833611,-500.0,0.00018273,2]
[357732312,1744399833621,-500.0,0.00018273,2]
[357732313,1744399833631,-177.5846923,0.00018273,2]
[357732314,1744399833641,-500.0,0.00018273,2]
[357732315,1744399833651,-50000.0,0.00018273,2]
[357732316,1744399833661,-500.0,0.00018273,2]
[357732317,1744399833673,-500.0,0.00018273,2]
[357732318,1744399833682,-205.07907228,0.00018281,2]
[357732319,1744399833692,-500.0,0.00018281,2]
[357732320,1744399833703,-500.0,0.00018281,2]
[357732321,1744399833713,-3965.15148739,0.00018286,2]
[357732322,1744399833830,-263.92743,0.00018286,2]
[357732323,1744399833843,-3597.22713105,0.00018286,2]
[357732324,1744399833868,-397.5,0.00018281,2]
[357732362,1744399838813,-320.0,0.00018272,2]
[357732364,1744399838825,-180.0,0.00018272,2]
[357732366,1744399838835,-500.0,0.00018272,2]
[357732369,1744399838848,-500.0,0.00018272,2]
[357732371,1744399838857,-284.02868837,0.00018272,2]
[357732373,1744399838869,-215.97131163,0.00018272,2]
[357732375,1744399838879,-500.0,0.00018272,2]
[357732377,1744399838888,-500.0,0.00018272,2]
[357732379,1744399838898,-500.0,0.00018272,2]
[357732381,1744399838907,-500.0,0.00018272,2]
[357732383,1744399838917,-500.0,0.00018272,2]
[357732385,1744399838927,-450.0,0.00018272,2]
[357732387,1744399838936,-500.0,0.00018272,2]
[357732389,1744399838946,-500.0,0.00018272,2]
[357732391,1744399838962,-500.0,0.00018272,2]
[357732393,1744399838977,-490.5019984,0.00018272,2]
[357732395,1744399838991,-500.0,0.00018272,2]
[357732397,1744399839001,-500.0,0.00018272,2]
[357732399,1744399839013,-500.0,0.00018272,2]
[357732400,1744399839023,-500.0,0.00018272,2]
[357732401,1744399839032,-500.0,0.00018272,2]
[357732402,1744399839043,-500.0,0.00018272,2]
[357732403,1744399839053,-500.0,0.00018272,2]
[357732405,1744399839063,-500.0,0.00018272,2]
[357732406,1744399839073,-500.0,0.00018272,2]
[357732407,1744399839082,-500.0,0.00018272,2]
[357732408,1744399839091,-500.0,0.00018272,2]
[357732409,1744399839101,-455.39396418,0.00018272,2]
[357732410,1744399839110,-500.0,0.00018272,2]
[357732411,1744399839121,-500.0,0.00018272,2]
[357732412,1744399839131,-153.80938208,0.00018281,2]
[357732413,1744399839141,-500.0,0.00018281,2]
[357732414,1744399839151,-9210.56255071,0.00018286,2]
[357732515,1744399841119,-7863.13140085,0.00018286,2]
[357732517,1744399841129,-242.22295,0.00018318,2]
[357732519,1744399841139,-219.5249359,0.00018469,2]
[357732522,1744399841149,-476.1176797,0.00018904,2]
[357732524,1744399841158,-250.0,0.00019215,2]
[357732526,1744399841167,-250.0,0.00019215,2]
[357732528,1744399841178,-151.0,0.00019308,2]
[357732530,1744399841187,-151.0,0.00019308,2]
[357732532,1744399841197,-160.48,0.00019309,2]
[357732534,1744399841206,-314.52530398,0.00019373,2]
[357732536,1744399841215,-591.48758388,0.00019373,2]
[357732538,1744399841225,-500.0,0.00019373,2]
[357732540,1744399841235,-573.25758573,0.00019373,2]
[357732542,1744399841245,-1264.50239639,0.000199,2]
[357732544,1744399841254,-420.0,0.00019931,2]
[357732546,1744399841264,-1264.50239632,0.0002059,2]
[357732548,1744399841273,-1264.50239632,0.00021279,3]
[357732550,1744399841283,-1499.7937097,0.00021288,2]
[357732552,1744399841293,-151.0,0.00021327,2]
[357732554,1744399841302,-151.0,0.00021687,2]
[357732556,1744399841312,-587.0,0.00021741,2]
[357732558,1744399841321,-1264.50239632,0.00021969,3]
[357732560,1744399841331,-196.0,0.00022,2]
[357732562,1744399841341,-196.0,0.00022192,2]
[357732564,1744399841351,-1264.50239632,0.00022659,4]
[357732566,1744399841361,-2000.0,0.00023,2]
[357732568,1744399841371,-196.0,0.00023014,2]
[357732570,1744399841381,-600.0,0.00023178,2]
[357732572,1744399841391,-989.38336085,0.00023248,2]
[357732574,1744399841400,-358.0,0.00023348,3]
[357732576,1744399841410,-358.0,0.00023348,3]
[357732578,1744399841420,-358.0,0.00023348,3]
[357732580,1744399841430,-358.0,0.00023348,3]
[357732582,1744399841441,-358.0,0.00023348,3]
[357732583,1744399841451,-358.0,0.00023348,3]
[357732584,1744399841461,-358.0,0.00023348,3]
[357732585,1744399841471,-1264.50239632,0.00023348,4]
[357732588,1744399841480,-1300.0,0.00023351,2]
[357732591,1744399841490,-600.0,0.0002336,2]
[357732593,1744399841500,-1400.0,0.00023414,2]
[357732595,1744399841510,-989.38336081,0.00023636,2]
[357732597,1744399841519,-823.0,0.00023715,2]
[357732599,1744399841529,-1300.0,0.00023724,2]
[357732601,1744399841539,-1300.0,0.00023725,2]
[357732603,1744399841548,-1000.0,0.00023752,2]
[357732605,1744399841559,-1000.0,0.00023752,2]
[357732607,1744399841569,-969.5831954,0.00023752,2]
[357732609,1744399841579,-1000.0,0.00023752,2]
[357732611,1744399841588,-542.98283116,0.00023752,2]
[357732613,1744399841597,-1000.0,0.00023752,2]
[357732615,1744399841607,-1000.0,0.00023752,2]
[357732617,1744399841617,-1000.0,0.00023752,2]
[357732619,1744399841627,-500.0,0.00023873,2]
[357732621,1744399841637,-500.0,0.00023873,2]
[357732623,1744399841647,-500.0,0.00023873,2]
[357732625,1744399841658,-500.0,0.00023873,2]
[357732627,1744399841668,-3378.00268071,0.000239,2]
[357732629,1744399841679,-1649.43891939,0.000239,3]
[357732631,1744399841688,-270855.65614015,0.000239,2]
[357732723,1744399843712,-4115.00000145,0.000239,2]
[357732724,1744399843771,-9323.54361232,0.000239,2]
[357732725,1744399843783,-52903.2883056,0.000239,2]
[357732726,1744399843794,-439.956806,0.000239,7]
[357732727,1744399843803,-439.956806,0.000239,7]
[357732728,1744399843813,-151.0,0.000239,7]
[357732729,1744399843823,-151.0,0.000239,7]
[357732730,1744399843832,-1025.541243,0.000239,7]
[357732731,1744399843841,-1025.541243,0.000239,7]
[357732732,1744399843850,-151.0,0.000239,7]
[357732733,1744399843860,-151.0,0.000239,7]
[357732734,1744399843869,-151.0,0.000239,7]
[357732735,1744399843878,-155.586339,0.000239,7]
[357732736,1744399843888,-213.935024,0.000239,7]
[357732737,1744399843897,-213.935024,0.000239,7]
[357732738,1744399843906,-151.0,0.000239,7]
[357732739,1744399843916,-600.0,0.00023914,2]
[357732740,1744399843925,-500.0,0.00023973,2]
[357732741,1744399843935,-500.0,0.00023973,2]
[357732742,1744399843944,-500.0,0.00023973,2]
[357732743,1744399843954,-504.81444733,0.00023973,2]
[357732744,1744399843967,-500.0,0.00023973,2]
[357732745,1744399843976,-500.0,0.00023973,2]
[357732746,1744399843986,-500.0,0.00023973,2]
[357732747,1744399843996,-500.0,0.00023973,2]
[357732748,1744399844007,-500.0,0.00023973,2]
[357732749,1744399844016,-500.0,0.00023973,2]
[357732750,1744399844026,-500.0,0.00023973,2]
[357732751,1744399844036,-500.0,0.00023973,2]
[357732752,1744399844047,-500.0,0.00023973,2]
[357732753,1744399844056,-500.0,0.00023973,2]
[357732754,1744399844067,-501.77045679,0.00023973,2]
[357732755,1744399844077,-8205.6938193,0.00024,3]
[357732756,1744399844087,-3001.29,0.00024,3]
[357732757,1744399844096,-160.0,0.00024,3]
[357732758,1744399844106,-10585.99954209,0.00024,3]
[357732759,1744399844116,-419.71244257,0.00024,3]
[357732760,1744399844126,-160.0,0.00024,3]
[357732761,1744399844136,-989.38336081,0.00024024,2]
[357732762,1744399844145,-1264.50239632,0.00024038,5]
[357732763,1744399844156,-936.0369311,0.00024152,2]
[357732764,1744399844165,-200.0,0.00024164,2]
[357732765,1744399844176,-1400.0,0.00024187,2]
[357732766,1744399844186,-1499.7937097,0.0002439,2]
[357732767,1744399844196,-989.38336081,0.00024412,2]
[357732768,1744399844206,-333.046,0.000245,7]
[357732769,1744399844216,-1809.40878651,0.000245,2]
[357732770,1744399844226,-14486.67078776,0.00024651,2]
[357732779,1744399846846,-20000.0,0.00024651,2]
[357732780,1744399846858,-1237.43049552,0.00024651,2]
[357732781,1744399846870,-37.40899185,0.00024651,2]
[357732782,1744399846880,-1400.0,0.00024658,2]
[357732783,1744399846890,-151.0,0.000247,7]
[357732784,1744399846900,-151.0,0.000247,7]
[357732785,1744399846910,-1264.50239632,0.00024728,5]
[357732787,1744399846921,-533.07007015,0.00024738,2]
[357732812,1744399989033,153.02,0.000266,31]
[357732813,1744399989080,153.02,0.000266,31]
[357732814,1744399989146,153.02,0.000266,31]
[357732815,1744400145717,191.83,0.00010959,2]
[357732816,1744400156391,159.86,0.00010959,2]
[357732817,1744400163656,286.814823,0.00017811,2]
[357732818,1744400167071,799.3,0.00010959,2]
[357732819,1744400207596,197.2134218,0.00017467,2]
[357732820,1744400210041,165.287178,0.0001727,2]
[357732821,1744400210261,165.287178,0.00017299,2]
[357732822,1744400210510,165.287178,0.00017328,2]
[357732823,1744400210763,165.287178,0.00017357,2]
[357732824,1744400266267,239.061896,0.00017402,2]
[357732825,1744400358241,264.3595,0.00017439,2]
[357732826,1744400393649,202.59,0.00010959,2]
[357732827,1744400404576,168.82,0.00010959,2]
[357732828,1744400407019,169.69,0.00013699,2]
[357732829,1744400407382,169.69,0.00013699,2]
[357732830,1744400407685,169.69,0.00013699,2]
[357732831,1744400408005,169.69,0.00013699,2]
[357732832,1744400408339,169.69,0.00013699,2]
[357732833,1744400408666,169.73543609,0.00013699,2]
[357732834,1744400425511,844.15,0.00010959,2]
[357732835,1744400593043,153.03,0.000266,31]
[357732836,1744400593092,153.03,0.000266,31]
[357732837,1744400593146,153.03,0.000266,31]
[357732838,1744400668428,24900.0,0.00017267,2]
[357732839,1744400724261,210.97,0.00010959,2]
[357732866,1744400972199,632.94,0.00010959,2]
[357732940,1744401035543,-250.0,0.00018086,2]
[357732941,1744401035553,-160.898098,0.00018254,2]
[357732942,1744401035563,-300.0,0.00018261,2]
[357732943,1744401035573,-500.0,0.00018261,2]
[357732944,1744401035582,-201.67672218,0.00018261,2]
[357732945,1744401035592,-500.0,0.00018261,2]
[357732946,1744401035601,-159.42537897,0.00018261,2]
[357732947,1744401035611,-500.0,0.00018261,2]
[357732948,1744401035620,-500.0,0.00018261,2]
[357732949,1744401035631,-50000.0,0.00018262,2]
[357732950,1744401035640,-500.0,0.00018273,2]
[357732951,1744401035650,-500.0,0.00018273,2]
[357732952,1744401035659,-500.0,0.00018273,2]
[357732953,1744401035669,-500.0,0.00018273,2]
[357732954,1744401035678,-500.0,0.00018273,2]
[357732955,1744401035688,-500.88558931,0.00018273,2]
[357732956,1744401035697,-500.0,0.00018273,2]
[357732957,1744401035707,-291.23480777,0.00018468,2]
[357732958,1744401035717,-152.0,0.00018549,2]
[357732959,1744401035726,-1206.27252434,0.000189,2]
[357732960,1744401035737,-975.0831019,0.000199,2]
[357732961,1744401035747,-420.0,0.0001992,2]
[357732962,1744401035756,-975.08310172,0.0002059,2]
[357732963,1744401035766,-200.0,0.00021012,2]
[357732964,1744401035776,-1504.11428247,0.00021268,2]
[357732965,1744401035786,-975.08310172,0.00021279,3]
[357732966,1744401035796,-587.0,0.00021729,2]
[357732967,1744401035806,-975.08310172,0.00021969,3]
[357732968,1744401035815,-975.08310172,0.00022659,4]
[357732969,1744401035825,-1200.0,0.00023019,2]
[357732970,1744401035835,-600.0,0.00023089,2]
[357732971,1744401035844,-975.08310172,0.00023348,4]
[357732972,1744401035854,-1200.0,0.00023493,2]
[357732973,1744401035863,-360.3165844,0.00023699,2]
[357732974,1744401035873,-360.3165844,0.00023699,2]
[357732975,1744401035883,-360.3165844,0.00023699,2]
[357732976,1744401035892,-360.3165844,0.00023699,2]
[357732977,1744401035901,-441.0,0.00023702,2]
[357732978,1744401035911,-1200.0,0.00023708,2]
[357732979,1744401035920,-600.0,0.00023746,2]
[357732980,1744401035930,-1000.0,0.00023752,2]
[357732981,1744401035940,-1000.0,0.00023752,2]
[357732983,1744401035949,-1000.0,0.00023752,2]
[357732985,1744401035960,-1000.0,0.00023752,2]
[357732987,1744401035970,-1000.0,0.00023752,2]
[357732989,1744401035980,-250.0,0.00023752,2]
[357732990,1744401035990,-190.0,0.00023755,2]
[357732992,1744401036000,-600.0,0.00023813,2]
[357732993,1744401036010,-500.0,0.0002385,2]
[357732994,1744401036020,-151.0,0.000239,7]
[357732995,1744401036029,-151.0,0.000239,7]
[357732996,1744401036039,-250.0,0.000239,2]
[357732997,1744401036049,-1206.27252434,0.000239,2]
[357732998,1744401036059,-3814.33869527,0.00024,3]
[357732999,1744401036069,-975.08310172,0.00024038,5]
[357733000,1744401036079,-702.0276983,0.00024152,2]
[357733001,1744401036090,-837.98236364,0.0002423,2]
[357733002,1744401036099,-419.71244257,0.0002423,2]
[357733003,1744401036110,-12006.09289161,0.0002423,2]
[357733004,1744401036120,-160.0,0.0002423,2]
[357733005,1744401036131,-503.5345434,0.00024247,2]
[357733006,1744401036141,-156.7645321,0.00024247,2]
[357733007,1744401036151,-156.7645321,0.00024247,2]
[357733008,1744401036162,-156.5558029,0.00024247,2]
[357733009,1744401036172,-160.0,0.00024364,2]
[357733010,1744401036182,-160.0,0.00024364,2]
[357733011,1744401036192,-1504.11428247,0.00024374,2]
[357733012,1744401036202,-266.437,0.000245,7]
[357733013,1744401036379,-600.0,0.00024612,2]
[357733014,1744401036394,-1651.57696253,0.00024638,2]
[357733015,1744401036404,-360.3165844,0.00024658,2]
[357733016,1744401036415,-366.3501851,0.00024658,2]
[357733017,1744401036426,-153.178815,0.00024658,7]
[357733018,1744401036437,-151.0,0.00024658,7]
[357733019,1744401036448,-1200.0,0.00024719,2]
[357733020,1744401036457,-975.08310172,0.00024728,5]
[357733021,1744401036468,-183.56220807,0.00024737,2]
[357733022,1744401036478,-151.0,0.00024738,7]
[357733023,1744401036489,-151.0,0.00024738,7]
[357733024,1744401036499,-151.0,0.00024738,7]
[357733025,1744401036509,-192.541522,0.00024738,7]
[357733026,1744401036519,-192.541522,0.00024738,7]
[357733027,1744401036530,-922.987118,0.00024738,7]
[357733028,1744401036540,-922.987118,0.00024738,7]
[357733029,1744401036550,-151.0,0.00024738,7]
[357733030,1744401036559,-500.0,0.00024773,2]
[357733031,1744401036569,-500.0,0.00024773,2]
[357733032,1744401036579,-500.0,0.00024773,2]
[357733033,1744401036588,-500.0,0.00024773,2]
[357733034,1744401036598,-500.0,0.00024773,2]
[357733035,1744401036607,-500.0,0.00024773,2]
[357733036,1744401036616,-500.0,0.00024773,2]
[357733037,1744401036626,-500.0,0.00024773,2]
[357733038,1744401036635,-500.0,0.00024773,2]
[357733039,1744401036644,-500.0,0.00024773,2]
[357733040,1744401036654,-500.0,0.00024773,2]
[357733041,1744401036664,-524.73198677,0.00024773,2]
[357733042,1744401036674,-500.0,0.00024773,2]
[357733043,1744401036684,-500.0,0.00024773,2]
[357733044,1744401036694,-500.0,0.00024773,2]
[357733045,1744401036704,-500.0,0.00024773,2]
[357733046,1744401036714,-500.0,0.00024773,2]
[357733047,1744401036724,-500.0,0.00024773,2]
[357733048,1744401036734,-151.0,0.00024773,7]
[357733049,1744401036744,-336.818227,0.00024773,2]
[357733050,1744401036754,-336.818227,0.00024773,2]
[357733051,1744401036763,-151.0,0.00024773,7]
[357733052,1744401036773,-151.0,0.00024773,7]
[357733053,1744401036782,-151.0,0.00024773,7]
[357733054,1744401036792,-395.961126,0.00024773,7]
[357733055,1744401036801,-395.961126,0.00024773,7]
[357733056,1744401036811,-151.0,0.00024773,7]
[357733057,1744401036821,-156.009566,0.00024773,7]
[357733058,1744401036830,-156.009566,0.00024773,7]
[357733059,1744401036840,-160.531406,0.00024773,7]
[357733060,1744401036849,-160.531406,0.00024773,7]
[357733061,1744401036860,-342.162178,0.00024773,7]
[357733062,1744401036869,-342.162178,0.00024773,7]
[357733063,1744401036880,-87407.17202893,0.000248,2]
[357733064,1744401036890,-151.0,0.000248,7]
[357733065,1744401036900,-151.0,0.000248,7]
[357733066,1744401036910,-151.0,0.000248,7]
[357733067,1744401036919,-336.818227,0.000248,2]
[357733068,1744401036929,-336.818227,0.000248,2]
[357733069,1744401036939,-151.000001,0.000248,7]
[357733070,1744401036949,-151.0,0.000248,7]
[357733071,1744401036959,-151.0,0.000248,7]
[357733072,1744401036969,-395.961126,0.000248,7]
[357733073,1744401036979,-395.961126,0.000248,7]
[357733074,1744401036990,-151.0,0.000248,7]
[357733075,1744401036999,-156.009566,0.000248,7]
[357733076,1744401037010,-156.009566,0.000248,7]
[357733077,1744401037020,-151.0,0.000248,7]
[357733078,1744401037030,-151.0,0.000248,7]
[357733079,1744401037039,-151.0,0.000248,7]
[357733080,1744401037050,-160.531406,0.000248,7]
[357733081,1744401037059,-160.531406,0.000248,7]
[357733082,1744401037069,-192.541522,0.000248,7]
[357733083,1744401037079,-192.541522,0.000248,7]
[357733084,1744401037089,-922.987118,0.000248,7]
[357733085,1744401037098,-922.987118,0.000248,7]
[357733086,1744401037108,-151.0,0.000248,7]
[357733087,1744401037118,-419.71244257,0.000248,7]
[357733088,1744401037128,-151.0,0.000248,7]
[357733089,1744401037137,-342.162178,0.000248,7]
[357733090,1744401037147,-342.162178,0.000248,7]
[357733091,1744401037156,-174.16044613,0.00024899,2]
[357733092,1744401037165,-1689.00134036,0.000249,2]
[357733093,1744401037176,-1934.41759056,0.000249,3]
[357733094,1744401037186,-151.0,0.000249,7]
[357733095,1744401037195,-151.0,0.000249,7]
[357733096,1744401037205,-248.81107,0.000249,7]
[357733097,1744401037215,-151.0,0.000249,7]
[357733098,1744401037224,-155.712246,0.000249,7]
[357733099,1744401037235,-151.0,0.000249,7]
[357733100,1744401037246,-151.0,0.000249,7]
[357733101,1744401037256,-151.0,0.000249,7]
[357733102,1744401037266,-392.811575,0.000249,7]
[357733103,1744401037276,-392.811575,0.000249,7]
[357733104,1744401037288,-151.0,0.000249,7]
[357733105,1744401037298,-336.818227,0.000249,2]
[357733106,1744401037308,-336.818227,0.000249,2]
[357733107,1744401037318,-151.0,0.000249,7]
[357733108,1744401037328,-151.0,0.000249,7]
[357733109,1744401037339,-395.961126,0.000249,7]
[357733110,1744401037349,-395.961126,0.000249,7]
[357733111,1744401037360,-151.0,0.000249,7]